fUSD/lending_fUSD_20260601
["ID","MTS","AMOUNT","RATE_DAILY","PERIOD"]
[423668645,1780291867000,-300.0,0.00035564,2]
[423668647,1780291867000,-300.0,0.00035564,2]
[423668642,1780291867000,-300.0,0.00035564,2]
[423668652,1780291867000,-300.0,0.00035564,2]
[423668649,1780291867000,-310.5091063,0.00035564,2]
[423668651,1780291867000,-300.0,0.00035564,2]
[423668654,1780291867000,-300.0,0.00035564,2]
[423668650,1780291867000,-300.0,0.00035564,2]
[423668653,1780291867000,-1097.19712337,0.00035564,2]
[423668656,1780291867000,-300.0,0.00035564,2]
[423668668,1780291867000,-535.13791573,0.00035564,2]
[423668667,1780291867000,-1069.20589958,0.00035564,2]
[423668666,1780291867000,-403.33114859,0.00035564,2]
[423668644,1780291867000,-300.0,0.00035564,2]
[423668687,1780291867000,-1149.66942362,0.00035564,2]
[423668705,1780291867000,-300.0,0.00035564,2]
[423668704,1780291867000,-379.76170982,0.00035564,2]
[423668727,1780291867000,-300.0,0.00035564,2]
[423668730,1780291867000,-300.0,0.00035564,2]
[423668729,1780291867000,-300.0,0.00035564,2]
[423668733,1780291867000,-528.00893317,0.00035564,2]
[423668731,1780291867000,-1264.8403207,0.00035564,2]
[423668734,1780291867000,-300.0,0.00035564,2]
[423668735,1780291867000,-300.0,0.00035564,2]
[423668737,1780291867000,-951.01509113,0.00035564,2]
[423668742,1780291867000,-595.23053793,0.00035564,2]
[423668741,1780291867000,-1636.54491639,0.00035564,2]
[423668732,1780291867000,-344.68554568,0.00035564,2]
[423668736,1780291867000,-866.20938408,0.00035564,2]
[423668740,1780291867000,-310.26144151,0.00035564,2]
[423668738,1780291867000,-1801.03876644,0.00035564,2]
[423668739,1780291867000,-1149.66942362,0.00035564,2]
[423668744,1780291867000,-464.82673062,0.00035564,2]
[423668755,1780291867000,-300.0,0.00035564,2]
[423668754,1780291867000,-310.5091063,0.00035564,2]
[423668743,1780291867000,-300.0,0.00035564,2]
[423668747,1780291867000,-300.0,0.00035564,2]
[423668748,1780291867000,-452.86682265,0.00035564,2]
[423668746,1780291867000,-578.82573767,0.00035564,2]
[423668745,1780291867000,-300.0,0.00035564,2]
[423668694,1780291867000,-300.0,0.00035564,2]
[423668751,1780291867000,-300.0,0.00035564,2]
[423668750,1780291867000,-300.0,0.00035564,2]
[423668753,1780291867000,-485.1393222,0.00035564,2]
[423668749,1780291867000,-300.0,0.00035564,2]
[423668756,1780291867000,-300.0,0.00035564,2]
[423668728,1780291867000,-300.0,0.00035564,2]
[423668725,1780291867000,-300.0,0.00035564,2]
[423668752,1780291867000,-300.0,0.00035564,2]
[423668724,1780291867000,-302.43156196,0.00035564,2]
[423668706,1780291867000,-300.0,0.00035564,2]
[423668722,1780291867000,-727.59512892,0.00035564,2]
[423668693,1780291867000,-464.82673062,0.00035564,2]
[423668696,1780291867000,-300.0,0.00035564,2]
[423668700,1780291867000,-300.0,0.00035564,2]
[423668697,1780291867000,-452.86682265,0.00035564,2]
[423668701,1780291867000,-300.0,0.00035564,2]
[423668699,1780291867000,-300.0,0.00035564,2]
[423668698,1780291867000,-300.0,0.00035564,2]
[423668702,1780291867000,-485.1393222,0.00035564,2]
[423668703,1780291867000,-310.5091063,0.00035564,2]
[423668707,1780291867000,-1097.19712337,0.00035564,2]
[423668708,1780291867000,-300.0,0.00035564,2]
[423668718,1780291867000,-300.0,0.00035564,2]
[423668695,1780291867000,-578.82573767,0.00035564,2]
[423668719,1780291867000,-403.33114859,0.00035564,2]
[423668709,1780291867000,-300.0,0.00035564,2]
[423668720,1780291867000,-1069.20589958,0.00035564,2]
[423668726,1780291867000,-301.20887308,0.00035564,2]
[423668716,1780291867000,-300.0,0.00035564,2]
[423668717,1780291867000,-605.72319923,0.00035564,2]
[423668721,1780291867000,-535.13791573,0.00035564,2]
[423668713,1780291867000,-493.7312536,0.00035564,2]
[423668715,1780291867000,-300.0,0.00035564,2]
[423668714,1780291867000,-300.0,0.00035564,2]
[423668711,1780291867000,-300.0,0.00035564,2]
[423668723,1780291867000,-300.0,0.00035564,2]
[423668712,1780291867000,-300.0,0.00035564,2]
[423668710,1780291867000,-300.0,0.00035564,2]
[423668786,1780291868000,-300.0,0.00035564,2]
[423668784,1780291868000,-528.00893317,0.00035564,2]
[423668785,1780291868000,-300.0,0.00035564,2]
[423668793,1780291868000,-595.23053793,0.00035564,2]
[423668789,1780291868000,-1801.03876644,0.00035564,2]
[423668792,1780291868000,-1636.54491639,0.00035564,2]
[423668788,1780291868000,-951.01509113,0.00035564,2]
[423668791,1780291868000,-310.26144151,0.00035564,2]
[423668795,1780291868000,-464.82673062,0.00035564,2]
[423668790,1780291868000,-1149.66942362,0.00035564,2]
[423668799,1780291868000,-452.86682265,0.00035564,2]
[423668805,1780291868000,-310.5091063,0.00035564,2]
[423668794,1780291868000,-300.0,0.00035564,2]
[423668796,1780291868000,-300.0,0.00035564,2]
[423668798,1780291868000,-382.41000444,0.00035564,2]
[423668797,1780291868000,-578.82573767,0.00035564,2]
[423668802,1780291868000,-300.0,0.00035564,2]
[423668801,1780291868000,-300.0,0.00035564,2]
[423668804,1780291868000,-485.1393222,0.00035564,2]
[423668800,1780291868000,-300.0,0.00035564,2]
[423668783,1780291868000,-344.68554568,0.00035564,2]
[423668803,1780291868000,-300.0,0.00035564,2]
[423668806,1780291868000,-300.0,0.00035564,2]
[423668787,1780291868000,-866.20938408,0.00035564,2]
[423668764,1780291868000,-493.7312536,0.00035564,2]
[423668779,1780291868000,-300.0,0.00035564,2]
[423668807,1780291868000,-300.0,0.00035564,2]
[423668758,1780291868000,-1097.19712337,0.00035564,2]
[423668759,1780291868000,-300.0,0.00035564,2]
[423668757,1780291868000,-300.0,0.00035564,2]
[423668765,1780291868000,-300.0,0.00035564,2]
[423668761,1780291868000,-300.0,0.00035564,2]
[423668767,1780291868000,-300.0,0.00035564,2]
[423668760,1780291868000,-300.0,0.00035564,2]
[423668768,1780291868000,-605.72319923,0.00035564,2]
[423668763,1780291868000,-300.0,0.00035564,2]
[423668762,1780291868000,-300.0,0.00035564,2]
[423668782,1780291868000,-1264.8403207,0.00035564,2]
[423668766,1780291868000,-300.0,0.00035564,2]
[423668770,1780291868000,-403.33114859,0.00035564,2]
[423668781,1780291868000,-300.0,0.00035564,2]
[423668772,1780291868000,-535.13791573,0.00035564,2]
[423668774,1780291868000,-300.0,0.00035564,2]
[423668771,1780291868000,-1069.20589958,0.00035564,2]
[423668773,1780291868000,-727.59512892,0.00035564,2]
[423668776,1780291868000,-300.0,0.00035564,2]
[423668778,1780291868000,-300.0,0.00035564,2]
[423668769,1780291868000,-300.0,0.00035564,2]
[423668777,1780291868000,-301.20887308,0.00035564,2]
[423668775,1780291868000,-302.43156196,0.00035564,2]
[423668780,1780291868000,-300.0,0.00035564,2]
[423668809,1780291868000,-300.0,0.00035564,2]
[423668830,1780291868000,-500.0,0.00035616,15]
[423668816,1780291868000,-4518.34232481,0.0003561,2]
[423668839,1780291868000,-500.0,0.00035616,15]
[423668837,1780291868000,-500.0,0.00035616,15]
[423668840,1780291868000,-500.0,0.00035616,15]
[423668841,1780291868000,-500.0,0.00035616,15]
[423668845,1780291868000,-500.0,0.00035616,15]
[423668844,1780291868000,-500.0,0.00035616,15]
[423668847,1780291868000,-500.0,0.00035616,15]
[423668846,1780291868000,-500.0,0.00035616,15]
[423668848,1780291868000,-500.0,0.00035616,15]
[423668850,1780291868000,-500.0,0.00035616,15]
[423668851,1780291868000,-500.0,0.00035616,15]
[423668852,1780291868000,-500.0,0.00035616,15]
[423668854,1780291868000,-500.0,0.00035616,15]
[423668853,1780291868000,-500.0,0.00035616,15]
[423668855,1780291868000,-500.0,0.00035616,15]
[423668856,1780291868000,-500.0,0.00035616,15]
[423668857,1780291868000,-500.0,0.00035616,15]
[423668862,1780291868000,-500.0,0.00035616,15]
[423668860,1780291868000,-500.0,0.00035616,15]
[423668859,1780291868000,-500.0,0.00035616,15]
[423668861,1780291868000,-500.0,0.00035616,15]
[423668858,1780291868000,-500.0,0.00035616,15]
[423668808,1780291868000,-1097.19712337,0.00035564,2]
[423668838,1780291868000,-500.0,0.00035616,15]
[423668832,1780291868000,-500.0,0.00035616,15]
[423668849,1780291868000,-500.0,0.00035616,15]
[423668834,1780291868000,-500.0,0.00035616,15]
[423668810,1780291868000,-218.25,0.00035566,120]
[423668842,1780291868000,-500.0,0.00035616,15]
[423668818,1780291868000,-2000.0,0.00035616,30]
[423668811,1780291868000,-500.0,0.00035593,2]
[423668817,1780291868000,-203.20661992,0.00035616,60]
[423668815,1780291868000,-171172.44360445,0.0003561,2]
[423668813,1780291868000,-500.0,0.00035593,2]
[423668814,1780291868000,-871.63,0.00035593,2]
[423668820,1780291868000,-500.0,0.00035616,15]
[423668825,1780291868000,-500.0,0.00035616,15]
[423668822,1780291868000,-500.0,0.00035616,15]
[423668824,1780291868000,-500.0,0.00035616,15]
[423668812,1780291868000,-500.0,0.00035593,2]
[423668821,1780291868000,-500.0,0.00035616,15]
[423668836,1780291868000,-500.0,0.00035616,15]
[423668835,1780291868000,-500.0,0.00035616,15]
[423668833,1780291868000,-500.0,0.00035616,15]
[423668828,1780291868000,-500.0,0.00035616,15]
[423668829,1780291868000,-500.0,0.00035616,15]
[423668831,1780291868000,-500.0,0.00035616,15]
[423668827,1780291868000,-500.0,0.00035616,15]
[423668819,1780291868000,-1306.88086462,0.00035616,30]
[423668823,1780291868000,-500.0,0.00035616,15]
[423668826,1780291868000,-500.0,0.00035616,15]
[423668843,1780291868000,-500.0,0.00035616,15]
[423668912,1780291869000,-500.0,0.00035616,7]
[423668905,1780291869000,-500.0,0.00035616,7]
[423668906,1780291869000,-500.0,0.00035616,7]
[423668901,1780291869000,-500.0,0.00035616,7]
[423668903,1780291869000,-500.0,0.00035616,7]
[423668897,1780291869000,-500.0,0.00035616,7]
[423668895,1780291869000,-1003.38,0.00035616,120]
[423668896,1780291869000,-500.0,0.00035616,7]
[423668899,1780291869000,-500.0,0.00035616,7]
[423668898,1780291869000,-500.0,0.00035616,7]
[423668904,1780291869000,-500.0,0.00035616,7]
[423668902,1780291869000,-225.5148941,0.00035616,7]
[423668911,1780291869000,-500.0,0.00035616,7]
[423668919,1780291869000,-500.0,0.00035616,7]
[423668907,1780291869000,-500.0,0.00035616,7]
[423668910,1780291869000,-500.0,0.00035616,7]
[423668909,1780291869000,-500.0,0.00035616,7]
[423668914,1780291869000,-500.0,0.00035616,7]
[423668915,1780291869000,-500.0,0.00035616,7]
[423668913,1780291869000,-500.0,0.00035616,7]
[423668916,1780291869000,-500.0,0.00035616,7]
[423668920,1780291869000,-500.0,0.00035616,7]
[423668922,1780291869000,-500.0,0.00035616,7]
[423668917,1780291869000,-500.0,0.00035616,7]
[423668923,1780291869000,-500.0,0.00035616,7]
[423668918,1780291869000,-500.0,0.00035616,7]
[423668894,1780291869000,-269.95391703,0.00035616,2]
[423668908,1780291869000,-500.0,0.00035616,7]
[423668900,1780291869000,-500.0,0.00035616,7]
[423668868,1780291869000,-500.0,0.00035616,15]
[423668889,1780291869000,-500.0,0.00035616,15]
[423668863,1780291869000,-500.0,0.00035616,15]
[423668864,1780291869000,-500.0,0.00035616,15]
[423668869,1780291869000,-500.0,0.00035616,15]
[423668866,1780291869000,-500.0,0.00035616,15]
[423668870,1780291869000,-500.0,0.00035616,15]
[423668924,1780291869000,-499.99999999,0.00035616,7]
[423668872,1780291869000,-500.0,0.00035616,15]
[423668865,1780291869000,-500.0,0.00035616,15]
[423668867,1780291869000,-500.0,0.00035616,15]
[423668871,1780291869000,-500.0,0.00035616,15]
[423668873,1780291869000,-500.0,0.00035616,15]
[423668874,1780291869000,-500.0,0.00035616,15]
[423668875,1780291869000,-500.0,0.00035616,15]
[423668879,1780291869000,-500.0,0.00035616,15]
[423668877,1780291869000,-500.0,0.00035616,15]
[423668876,1780291869000,-500.0,0.00035616,15]
[423668887,1780291869000,-500.0,0.00035616,15]
[423668881,1780291869000,-500.0,0.00035616,15]
[423668878,1780291869000,-500.0,0.00035616,15]
[423668880,1780291869000,-500.0,0.00035616,15]
[423668883,1780291869000,-500.0,0.00035616,15]
[423668886,1780291869000,-500.0,0.00035616,15]
[423668884,1780291869000,-500.0,0.00035616,15]
[423668882,1780291869000,-500.0,0.00035616,15]
[423668885,1780291869000,-500.0,0.00035616,15]
[423668888,1780291869000,-500.0,0.00035616,15]
[423668892,1780291869000,-150.0,0.00035616,2]
[423668890,1780291869000,-213.39396534,0.00035616,15]
[423668891,1780291869000,-150.0,0.00035616,2]
[423668893,1780291869000,-150.0,0.00035616,2]
[423668925,1780291869000,-153.239422,0.00035616,2]
[423668931,1780291869000,-1716.0,0.00035697,30]
[423668927,1780291869000,-434.91,0.00035616,2]
[423668962,1780291869000,-334.93508353,0.00036,120]
[423668959,1780291869000,-209.14443538,0.00035995,120]
[423668956,1780291869000,-400.0,0.00035951,2]
[423668960,1780291869000,-10000.0,0.00036,120]
[423668958,1780291869000,-11866.0303,0.00035965,2]
[423668961,1780291869000,-463.55715431,0.00036,2]
[423668966,1780291869000,-870.30066611,0.00036,2]
[423668969,1780291869000,-1308.37099236,0.00036088,2]
[423668970,1780291869000,-11866.0303,0.00036093,2]
[423668972,1780291869000,-1334.60081527,0.00036094,2]
[423668968,1780291869000,-1385.14187996,0.00036088,2]
[423668967,1780291869000,-800.0,0.00036,2]
[423668971,1780291869000,-1243.02623247,0.00036094,2]
[423668957,1780291869000,-4440.12,0.00035959,30]
[423668974,1780291869000,-1483.57754087,0.00036094,2]
[423668921,1780291869000,-500.0,0.00035616,7]
[423668976,1780291869000,-1897.38379695,0.00036094,2]
[423668975,1780291869000,-1233.67342766,0.00036094,2]
[423668979,1780291869000,-2313.95472622,0.00036094,2]
[423668980,1780291869000,-2234.12436971,0.00036094,2]
[423668983,1780291869000,-1947.01,0.00036111,7]
[423668982,1780291869000,-1059.35,0.00036111,7]
[423668978,1780291869000,-2152.92073427,0.00036094,2]
[423668981,1780291869000,-3995.2,0.000361,14]
[423668984,1780291869000,-177.57,0.00036122,10]
[423668985,1780291869000,-158.00653204,0.00036127,2]
[423668987,1780291869000,-1278.8,0.00036153,30]
[423668986,1780291869000,-7296.60514781,0.00036137,50]
[423668973,1780291869000,-1281.06439888,0.00036094,2]
[423668955,1780291869000,-400.0,0.00035951,2]
[423668977,1780291869000,-1287.56542439,0.00036094,2]
[423668954,1780291869000,-169.85804362,0.00035951,2]
[423668952,1780291869000,-150.0,0.00035951,2]
[423668937,1780291869000,-363.0,0.00035697,30]
[423668938,1780291869000,-1622.0,0.00035697,30]
[423668929,1780291869000,-621.0,0.00035681,11]
[423668926,1780291869000,-331.41,0.00035616,115]
[423668928,1780291869000,-385.56,0.0003567,98]
[423668932,1780291869000,-1412.0,0.00035697,30]
[423668936,1780291869000,-499.0,0.00035697,30]
[423668934,1780291869000,-296.0,0.00035697,30]
[423668935,1780291869000,-3126.0,0.00035697,30]
[423668933,1780291869000,-369.0,0.00035697,30]
[423668939,1780291869000,-586.0,0.00035697,30]
[423668940,1780291869000,-1197.0,0.00035697,30]
[423668943,1780291869000,-860.0,0.00035707,30]
[423668930,1780291869000,-417.0,0.00035697,30]
[423668945,1780291869000,-179.4088,0.00035837,2]
[423668965,1780291869000,-369.85798423,0.00036,5]
[423668946,1780291869000,-11866.0303,0.00035837,2]
[423668953,1780291869000,-150.0,0.00035951,2]
[423668964,1780291869000,-25131.40064574,0.00036,2]
[423668949,1780291869000,-407.0,0.00035951,2]
[423668950,1780291869000,-407.0,0.00035951,2]
[423668963,1780291869000,-404.0,0.00036,30]
[423668944,1780291869000,-155.61229223,0.0003582,2]
[423668947,1780291869000,-201.668571,0.00035867,15]
[423668942,1780291869000,-687.0,0.00035707,30]
[423668948,1780291869000,-350.0,0.0003589,5]
[423668941,1780291869000,-669.0,0.00035697,30]
[423668951,1780291869000,-150.0,0.00035951,2]
[423669003,1780291870000,-1569.7,0.00036513,120]
[423669007,1780291870000,-11866.0303,0.00036605,2]
[423669004,1780291870000,-1098.79,0.00036513,120]
[423669008,1780291870000,-2000.0,0.00036639,120]
[423669006,1780291870000,-1200.73161,0.000366,120]
[423669009,1780291870000,-32846.0562,0.00036666,30]
[423669011,1780291870000,-158.00653204,0.00036675,2]
[423669021,1780291870000,-481.78485205,0.00036822,2]
[423669018,1780291870000,-1059.34,0.00036796,7]
[423669016,1780291870000,-385.56,0.0003676,120]
[423669019,1780291870000,-1947.03,0.00036796,7]
[423669023,1780291870000,-350.0,0.00036849,5]
[423669020,1780291870000,-1642.02797959,0.000368,2]
[423669012,1780291870000,-179.4088,0.00036733,2]
[423669010,1780291870000,-155.30443574,0.00036672,2]
[423669014,1780291870000,-621.0,0.00036748,12]
[423668988,1780291870000,-169.07292446,0.00036179,2]
[423669013,1780291870000,-11866.0303,0.00036733,2]
[423669022,1780291870000,-158.34877568,0.00036831,60]
[423668989,1780291870000,-1528.16652776,0.00036185,14]
[423668990,1780291870000,-385.56,0.0003621,114]
[423668992,1780291870000,-11866.0303,0.00036221,2]
[423668994,1780291870000,-200.0,0.00036268,5]
[423668993,1780291870000,-200.0,0.00036268,5]
[423668991,1780291870000,-621.0,0.00036214,11]
[423668995,1780291870000,-11866.0303,0.00036349,2]
[423668999,1780291870000,-158.00653204,0.00036401,2]
[423668997,1780291870000,-1230.64,0.00036362,60]
[423668996,1780291870000,-1950.87,0.00036362,60]
[423669002,1780291870000,-2242.43,0.00036513,120]
[423668998,1780291870000,-31263.0,0.000364,30]
[423669000,1780291870000,-11866.0303,0.00036477,2]
[423669001,1780291870000,-867.64,0.00036495,30]
[423669015,1780291870000,-297.82,0.00036759,30]
[423669026,1780291870000,-250.73142889,0.00036899,3]
[423669005,1780291870000,-788.97,0.000366,30]
[423669017,1780291870000,-151.44,0.0003676,60]
[423669050,1780291870000,-4500.0,0.00037,2]
[423669042,1780291870000,-333.0,0.00037,120]
[423669045,1780291870000,-181.864,0.00037,2]
[423669048,1780291870000,-365.0,0.00037,2]
[423669053,1780291870000,-151.44,0.0003706,60]
[423669044,1780291870000,-150.0,0.00037,2]
[423669052,1780291870000,-201.668571,0.00037033,18]
[423669049,1780291870000,-168.92536278,0.00037,2]
[423669046,1780291870000,-4987.6519206,0.00037,120]
[423669054,1780291870000,-232955.12830157,0.000371,2]
[423669055,1780291870000,-197.98680208,0.00011099,2]
[423669056,1780291870000,-184.05177496,0.00016438,2]
[423669058,1780291870000,-1736.88794891,0.000371,2]
[423669059,1780291870000,-2000.0,0.000371,7]
[423669060,1780291870000,-4508.05385756,0.00037117,2]
[423669051,1780291870000,-491.46,0.00037,60]
[423669043,1780291870000,-404.0,0.00037,30]
[423669027,1780291870000,-541.347739,0.00036913,120]
[423669041,1780291870000,-462.0,0.00037,30]
[423669047,1780291870000,-1077.7505,0.00037,30]
[423669024,1780291870000,-151.44,0.0003686,60]
[423669025,1780291870000,-11866.0303,0.00036861,2]
[423669029,1780291870000,-158.00653204,0.00036948,2]
[423669028,1780291870000,-500.0,0.00036913,120]
[423669030,1780291870000,-151.44,0.0003696,60]
[423669031,1780291870000,-9617.86894195,0.00036976,2]
[423669036,1780291870000,-250.0,0.00036976,2]
[423669039,1780291870000,-152.0,0.00036986,5]
[423669033,1780291870000,-250.0,0.00036976,2]
[423669034,1780291870000,-250.0,0.00036976,2]
[423669032,1780291870000,-250.0,0.00036976,2]
[423669038,1780291870000,-267.5528608,0.00036976,2]
[423669057,1780291870000,-251.14,0.00030136,30]
[423669035,1780291870000,-250.0,0.00036976,2]
[423669037,1780291870000,-250.0,0.00036976,2]
[423669040,1780291870000,-11866.0303,0.00036989,2]
[423669072,1780291871000,-212.7187079,0.000372,120]
[423669076,1780291871000,-11866.0303,0.00037245,2]
[423669073,1780291871000,-212.7187079,0.000372,120]
[423669069,1780291871000,-2076.80602,0.000372,14]
[423669075,1780291871000,-158.00653204,0.00037222,2]
[423669080,1780291871000,-167.09313611,0.000373,30]
[423669068,1780291871000,-151.44,0.0003716,60]
[423669074,1780291871000,-212.7187079,0.000372,120]
[423669071,1780291871000,-212.71870793,0.000372,120]
[423669065,1780291871000,-1169.05623599,0.00037117,2]
[423669070,1780291871000,-1918.39398,0.000372,14]
[423669077,1780291871000,-151.44,0.0003726,60]
[423669067,1780291871000,-2000.0,0.00037143,120]
[423669066,1780291871000,-6188.92020645,0.00037117,2]
[423669064,1780291871000,-42.74006459,0.00035564,2]
[423669062,1780291871000,-300.0,0.00035564,2]
[423669079,1780291871000,-385.56,0.000373,60]
[423669061,1780291871000,-468.48877466,0.00013425,2]
[423669063,1780291871000,-257.25993541,0.00035564,2]
[423669078,1780291871000,-621.0,0.00037282,13]
[423669089,1780291871000,-839.81359748,0.00037373,2]
[423669087,1780291871000,-151.44,0.0003736,60]
[423669090,1780291871000,-634.28,0.00037373,2]
[423669101,1780291871000,-2147.19836566,0.00037373,2]
[423669102,1780291871000,-764.35819478,0.00037373,2]
[423669104,1780291871000,-256.84210766,0.00022103,2]
[423669103,1780291871000,-354.70923108,0.00022103,2]
[423669099,1780291871000,-6740.43002842,0.00037373,2]
[423669094,1780291871000,-929.0,0.00019103,2]
[423669097,1780291871000,-150.0,0.00031011,2]
[423669084,1780291871000,-296.70850433,0.000373,30]
[423669098,1780291871000,-300.27396991,0.00035564,2]
[423669100,1780291871000,-2852.80163434,0.00037373,2]
[423669092,1780291871000,-6455.41454802,0.000149,2]
[423669093,1780291871000,-929.0,0.00016103,2]
[423669091,1780291871000,-343.25506771,0.00037373,2]
[423669088,1780291871000,-3308.25160639,0.00037373,2]
[423669081,1780291871000,-167.0931361,0.000373,30]
[423669083,1780291871000,-262.00602867,0.000373,30]
[423669082,1780291871000,-167.0931361,0.000373,30]
[423669086,1780291871000,-296.70850432,0.000373,30]
[423669085,1780291871000,-296.70850432,0.000373,30]
[423669095,1780291871000,-173.07996087,0.000295,2]
[423669096,1780291871000,-150.0,0.00029534,2]
[423669106,1780291910000,-500.0,8.795e-05,2]
[423669105,1780291910000,-500.0,8.894e-05,2]
[423669107,1780291911000,-500.0,8.795e-05,2]
[423669108,1780291911000,2500.0,0.00028263,120]
[423669111,1780291942000,1233.3,0.00029614,120]
[423669110,1780291942000,1233.3,0.00026324,120]
[423669116,1780292004000,-151.0,8.692e-05,2]
[423669126,1780292081000,-500.0,8.694e-05,2]
[423669127,1780292081000,-500.0,8.694e-05,2]
[423669125,1780292081000,-500.0,8.694e-05,2]
[423669124,1780292081000,-500.0,8.694e-05,2]
[423669123,1780292081000,-500.0,8.694e-05,2]
[423669121,1780292081000,-500.0,8.694e-05,2]
[423669122,1780292081000,-500.0,8.694e-05,2]
[423669120,1780292081000,-509.26570021,8.694e-05,2]
[423669119,1780292081000,-500.0,8.694e-05,2]
[423669128,1780292081000,-5490.74429979,8.695e-05,2]
[423669130,1780292082000,-634.433,8.521e-05,2]
[423669131,1780292082000,-9365.577,8.695e-05,2]
[423669134,1780292083000,-8941.70011318,8.695e-05,2]
[423669132,1780292083000,-500.0,8.694e-05,2]
[423669133,1780292083000,-558.30988682,8.694e-05,2]
[423669135,1780292083000,278.06904029,7.36e-05,7]
[423669137,1780292083000,278.06904029,7.507e-05,7]
[423669138,1780292083000,278.06904029,7.728e-05,7]
[423669140,1780292083000,278.06904033,8.243e-05,7]
[423669136,1780292083000,239.8277382,0.0001,3]
[423669139,1780292083000,278.06904029,7.949e-05,7]
[423669141,1780292084000,-10000.01,8.695e-05,2]
[423669143,1780292085000,-558.30988682,8.694e-05,2]
[423669144,1780292085000,-8941.70011318,8.695e-05,2]
[423669142,1780292085000,-500.0,8.694e-05,2]
[423669145,1780292086000,-500.0,8.694e-05,2]
[423669146,1780292086000,-558.30988682,8.694e-05,2]
[423669147,1780292086000,-8941.70011318,8.695e-05,2]
[423669148,1780292222000,-38977.0,8.595e-05,2]
[423669149,1780292240000,903.601,0.0003,120]
[423669150,1780292500000,500.0,0.00028102,120]
[423669151,1780292530000,193.52,0.00030082,120]
[423669153,1780292578000,1368.36,0.00029806,120]
[423669163,1780293031000,-367.22727428,8.594e-05,2]
[423669161,1780293031000,-1250.298,8.423e-05,2]
[423669162,1780293031000,-1200.0,8.593e-05,2]
[423669180,1780293032000,-500.0,8.594e-05,2]
[423669191,1780293032000,-500.0,8.594e-05,2]
[423669184,1780293032000,-558.30988682,8.594e-05,2]
[423669185,1780293032000,-500.0,8.594e-05,2]
[423669193,1780293032000,-500.0,8.594e-05,2]
[423669192,1780293032000,-558.30988682,8.594e-05,2]
[423669194,1780293032000,-558.30988682,8.594e-05,2]
[423669197,1780293032000,-500.0,8.594e-05,2]
[423669196,1780293032000,-558.30988682,8.594e-05,2]
[423669203,1780293032000,-558.30988682,8.594e-05,2]
[423669204,1780293032000,-558.30988682,8.594e-05,2]
[423669205,1780293032000,-500.0,8.594e-05,2]
[423669200,1780293032000,-500.0,8.594e-05,2]
[423669201,1780293032000,-558.30988682,8.594e-05,2]
[423669182,1780293032000,-558.30988682,8.594e-05,2]
[423669207,1780293032000,-558.30988682,8.594e-05,2]
[423669195,1780293032000,-500.0,8.594e-05,2]
[423669206,1780293032000,-500.0,8.594e-05,2]
[423669202,1780293032000,-500.0,8.594e-05,2]
[423669198,1780293032000,-558.30988682,8.594e-05,2]
[423669190,1780293032000,-558.30988682,8.594e-05,2]
[423669166,1780293032000,-500.0,8.594e-05,2]
[423669189,1780293032000,-500.0,8.594e-05,2]
[423669218,1780293032000,-500.0,8.594e-05,2]
[423669167,1780293032000,-500.0,8.594e-05,2]
[423669164,1780293032000,-132.77272572,8.594e-05,2]
[423669165,1780293032000,-282.19722397,8.594e-05,2]
[423669168,1780293032000,-500.0,8.594e-05,2]
[423669172,1780293032000,-260.84216258,8.594e-05,2]
[423669170,1780293032000,-500.0,8.594e-05,2]